[Event "*** Titled Tuesday Blitz"]
[Site "Chess.com"]
[Date "2020.05.05"]
[Round "2"]
[White "Klavdia_Nik"]
[Black "Filip_Covic"]
[Result "0-1"]
[WhiteElo "1954"]
[BlackElo "2356"]
[TimeControl "180+1"]
[EndTime "10:18:45 PDT"]
[Termination "Filip_Covic won on time"]

1. Nf3 {[%clk 0:03:00.9]} 1... Nf6 {[%clk 0:02:58.9]} 2. c4 {[%clk 0:02:59.3]}
2... e6 {[%clk 0:02:58.6]} 3. b3 {[%clk 0:02:58.4]} 3... d5 {[%clk 0:02:57.5]}
4. Bb2 {[%clk 0:02:57.7]} 4... Be7 {[%clk 0:02:58.1]} 5. g3 {[%clk 0:02:57.7]}
5... O-O {[%clk 0:02:58.6]} 6. Bg2 {[%clk 0:02:58.2]} 6... b6 {[%clk 0:02:59.3]}
7. O-O {[%clk 0:02:56.6]} 7... Bb7 {[%clk 0:02:59.8]} 8. d4 {[%clk 0:02:50.6]}
8... Nbd7 {[%clk 0:02:59.2]} 9. Nc3 {[%clk 0:02:50.9]} 9... c5 {[%clk
0:02:58.1]} 10. cxd5 {[%clk 0:02:48.9]} 10... Nxd5 {[%clk 0:02:57.4]} 11. Nxd5
{[%clk 0:02:36.7]} 11... Bxd5 {[%clk 0:02:58.3]} 12. dxc5 {[%clk 0:02:35.5]}
12... Nxc5 {[%clk 0:02:56.5]} 13. Rc1 {[%clk 0:02:30.7]} 13... Rc8 {[%clk
0:02:48.6]} 14. h3 {[%clk 0:02:16.6]} 14... Bf6 {[%clk 0:02:43.6]} 15. Bxf6
{[%clk 0:02:14.1]} 15... Qxf6 {[%clk 0:02:40.8]} 16. Qd4 {[%clk 0:02:09.9]}
16... Qe7 {[%clk 0:02:31]} 17. Qh4 {[%clk 0:01:53.7]} 17... Qxh4 {[%clk
0:02:25.5]} 18. Nxh4 {[%clk 0:01:52]} 18... Rfd8 {[%clk 0:02:26.1]} 19. Rfd1
{[%clk 0:01:41.6]} 19... Bxg2 {[%clk 0:02:19]} 20. Kxg2 {[%clk 0:01:36.3]} 20...
Kf8 {[%clk 0:02:01.1]} 21. Rxd8+ {[%clk 0:01:31.2]} 21... Rxd8 {[%clk
0:01:59.8]} 22. Rc2 {[%clk 0:01:31]} 22... Ke7 {[%clk 0:01:53.2]} 23. Nf3 {[%clk
0:01:27]} 23... f6 {[%clk 0:01:49.7]} 24. Nd2 {[%clk 0:01:18.4]} 24... e5 {[%clk
0:01:22.9]} 25. g4 {[%clk 0:01:09]} 25... Ke6 {[%clk 0:01:19]} 26. f3 {[%clk
0:01:00]} 26... g6 {[%clk 0:00:52.8]} 27. Kf2 {[%clk 0:00:46.4]} 27... f5 {[%clk
0:00:50.7]} 28. Ke3 {[%clk 0:00:43.6]} 28... Rc8 {[%clk 0:00:39.7]} 29. Nc4
{[%clk 0:00:21.5]} 29... Rd8 {[%clk 0:00:26.1]} 30. Rd2 {[%clk 0:00:19.9]} 30...
f4+ {[%clk 0:00:24.9]} 31. Kf2 {[%clk 0:00:20.2]} 31... Rxd2 {[%clk 0:00:24.7]}
32. Nxd2 {[%clk 0:00:19.8]} 32... b5 {[%clk 0:00:22.1]} 33. b4 {[%clk
0:00:11.7]} 33... Nd7 {[%clk 0:00:14.7]} 34. e3 {[%clk 0:00:09.9]} 34... Kd5
{[%clk 0:00:13.2]} 35. Ke2 {[%clk 0:00:04.3]} 35... h6 {[%clk 0:00:06.3]} 36.
Kd3 {[%clk 0:00:04.3]} 36... Nb6 {[%clk 0:00:04.5]} 37. exf4 {[%clk 0:00:03.5]}
37... exf4 {[%clk 0:00:04.7]} 0-1

[Event "*** Titled Tuesday Blitz"]
[Site "Chess.com"]
[Date "2020.05.05"]
[Round "2"]
[White "farzadbfd"]
[Black "davigator"]
[Result "1-0"]
[WhiteElo "2656"]
[BlackElo "2322"]
[TimeControl "180+1"]
[EndTime "10:18:48 PDT"]
[Termination "farzadbfd won by checkmate"]

1. e4 {[%clk 0:01:53]} 1... c5 {[%clk 0:02:58.6]} 2. Nc3 {[%clk 0:01:51.8]} 2...
Nc6 {[%clk 0:02:57.5]} 3. g3 {[%clk 0:01:40]} 3... g6 {[%clk 0:02:57.2]} 4. Bg2
{[%clk 0:01:38.6]} 4... Bg7 {[%clk 0:02:57.3]} 5. d3 {[%clk 0:01:39.5]} 5... d6
{[%clk 0:02:55.4]} 6. Be3 {[%clk 0:01:40.1]} 6... Nf6 {[%clk 0:02:55.4]} 7. h3
{[%clk 0:01:40.2]} 7... O-O {[%clk 0:02:55.4]} 8. Nge2 {[%clk 0:01:39.1]} 8...
Rb8 {[%clk 0:02:53.8]} 9. O-O {[%clk 0:01:39.7]} 9... Bd7 {[%clk 0:02:52.2]} 10.
Qd2 {[%clk 0:01:40.6]} 10... Re8 {[%clk 0:02:51.3]} 11. Bh6 {[%clk 0:01:41.1]}
11... Bh8 {[%clk 0:02:50.3]} 12. Nd1 {[%clk 0:01:41.7]} 12... b5 {[%clk
0:02:48.9]} 13. f4 {[%clk 0:01:42.2]} 13... b4 {[%clk 0:02:48.3]} 14. Ne3 {[%clk
0:01:42.7]} 14... Nd4 {[%clk 0:02:46.9]} 15. g4 {[%clk 0:01:42.8]} 15... Bb5
{[%clk 0:02:38.5]} 16. Ng3 {[%clk 0:01:40.9]} 16... a5 {[%clk 0:02:36.1]} 17. f5
{[%clk 0:01:34.7]} 17... Nd7 {[%clk 0:02:33.5]} 18. fxg6 {[%clk 0:01:31.9]}
18... hxg6 {[%clk 0:02:33]} 19. Rf2 {[%clk 0:01:28.8]} 19... Ne5 {[%clk
0:02:32.7]} 20. Raf1 {[%clk 0:01:28.6]} 20... a4 {[%clk 0:02:31.7]} 21. b3
{[%clk 0:01:27]} 21... Ra8 {[%clk 0:02:14.2]} 22. Nd5 {[%clk 0:01:26.7]} 22...
axb3 {[%clk 0:02:12.4]} 23. axb3 {[%clk 0:01:26.5]} 23... Ra2 {[%clk 0:02:10.7]}
24. Qg5 {[%clk 0:01:26.7]} 24... f6 {[%clk 0:02:04.4]} 25. Qc1 {[%clk
0:01:15.5]} 25... Kh7 {[%clk 0:01:52.5]} 26. Bf4 {[%clk 0:01:14.7]} 26... Bg7
{[%clk 0:01:52.2]} 27. g5 {[%clk 0:01:00.4]} 27... Rf8 {[%clk 0:01:38.7]} 28.
Be3 {[%clk 0:00:56.7]} 28... fxg5 {[%clk 0:01:23.3]} 29. Rxf8 {[%clk 0:00:54.9]}
29... Bxf8 {[%clk 0:01:22.8]} 30. Bxd4 {[%clk 0:00:49.4]} 30... cxd4 {[%clk
0:01:21.5]} 31. Nxb4 {[%clk 0:00:49.9]} 31... Ra7 {[%clk 0:01:17.5]} 32. Qxg5
{[%clk 0:00:47.1]} 32... Bh6 {[%clk 0:01:17]} 33. Qh4 {[%clk 0:00:46.7]} 33...
Kg7 {[%clk 0:01:16.4]} 34. Nd5 {[%clk 0:00:44.7]} 34... Qe8 {[%clk 0:01:15.7]}
35. Ne2 {[%clk 0:00:37.1]} 35... Bc6 {[%clk 0:01:06.2]} 36. Ndf4 {[%clk
0:00:30.2]} 36... g5 {[%clk 0:00:44.4]} 37. Ne6+ {[%clk 0:00:27.5]} 37... Kg6
{[%clk 0:00:38.2]} 38. Qf2 {[%clk 0:00:23.5]} 38... Bd7 {[%clk 0:00:31.8]} 39.
Qf5+ {[%clk 0:00:22.1]} 39... Kh5 {[%clk 0:00:30.3]} 40. Bf3+ {[%clk 0:00:12.4]}
40... Kh4 {[%clk 0:00:25.2]} 41. Bg4 {[%clk 0:00:12.8]} 41... Qf7 {[%clk
0:00:16.1]} 42. N2xd4 {[%clk 0:00:11.6]} 42... Bxe6 {[%clk 0:00:13.1]} 43. Qxe6
{[%clk 0:00:09.4]} 43... Qxe6 {[%clk 0:00:12.4]} 44. Nxe6 {[%clk 0:00:10.3]}
44... Kg3 {[%clk 0:00:11.1]} 45. Nd4 {[%clk 0:00:09.9]} 45... Ra2 {[%clk
0:00:10.6]} 46. Nf5# {[%clk 0:00:10.1]} 1-0

[Event "*** Titled Tuesday Blitz"]
[Site "Chess.com"]
[Date "2020.05.05"]
[Round "2"]
[White "QueenOfTactics90"]
[Black "fabianvivasz"]
[Result "0-1"]
[WhiteElo "2000"]
[BlackElo "2362"]
[TimeControl "180+1"]
[EndTime "10:18:48 PDT"]
[Termination "fabianvivasz won on time"]

1. e4 {[%clk 0:03:00.9]} 1... e5 {[%clk 0:02:57.9]} 2. Nf3 {[%clk 0:03:00.8]}
2... Nc6 {[%clk 0:02:58.1]} 3. d4 {[%clk 0:03:01.3]} 3... exd4 {[%clk
0:02:58.1]} 4. Nxd4 {[%clk 0:03:02.2]} 4... Nf6 {[%clk 0:02:58.3]} 5. Nc3 {[%clk
0:02:56.5]} 5... Bb4 {[%clk 0:02:57.8]} 6. Nxc6 {[%clk 0:02:56.4]} 6... bxc6
{[%clk 0:02:58.7]} 7. Bd3 {[%clk 0:02:56.1]} 7... d5 {[%clk 0:02:58.9]} 8. exd5
{[%clk 0:02:57]} 8... O-O {[%clk 0:02:59.4]} 9. O-O {[%clk 0:02:52.4]} 9... Bg4
{[%clk 0:02:59.4]} 10. f3 {[%clk 0:02:41.3]} 10... Bh5 {[%clk 0:02:58.9]} 11.
dxc6 {[%clk 0:02:39.3]} 11... Qd4+ {[%clk 0:02:59.3]} 12. Kh1 {[%clk 0:02:26.1]}
12... Bxc3 {[%clk 0:02:59.6]} 13. bxc3 {[%clk 0:02:18.1]} 13... Qxc3 {[%clk
0:03:00.5]} 14. Rb1 {[%clk 0:01:44.1]} 14... Qxc6 {[%clk 0:02:33.3]} 15. Bb5
{[%clk 0:01:35.4]} 15... Qc5 {[%clk 0:02:20.4]} 16. Qd3 {[%clk 0:01:17.9]} 16...
Rfd8 {[%clk 0:02:11.2]} 17. Ba3 {[%clk 0:01:10.8]} 17... Rxd3 {[%clk 0:01:52.1]}
18. Bxc5 {[%clk 0:01:10.2]} 18... Rc3 {[%clk 0:01:52.5]} 19. Bd4 {[%clk
0:00:56.5]} 19... Rxc2 {[%clk 0:01:51.5]} 20. a4 {[%clk 0:00:50.4]} 20... a6
{[%clk 0:01:43.2]} 21. Bxa6 {[%clk 0:00:38.3]} 21... h6 {[%clk 0:01:13]} 22. Bd3
{[%clk 0:00:33.8]} 22... Rd2 {[%clk 0:01:11.8]} 23. Bxf6 {[%clk 0:00:33.2]}
23... Rxd3 {[%clk 0:01:03.8]} 24. Be5 {[%clk 0:00:33.1]} 24... Rxa4 {[%clk
0:00:48.9]} 25. Bxc7 {[%clk 0:00:32.6]} 25... Ra2 {[%clk 0:00:48.8]} 26. Bf4
{[%clk 0:00:28.3]} 26... g5 {[%clk 0:00:36.6]} 27. Rb8+ {[%clk 0:00:26]} 27...
Kh7 {[%clk 0:00:33.4]} 28. Be5 {[%clk 0:00:26.1]} 28... Rxf3 {[%clk 0:00:07.4]}
29. Rh8+ {[%clk 0:00:16.1]} 29... Kg6 {[%clk 0:00:07.1]} 30. Rg8+ {[%clk
0:00:15.7]} 30... Kf5 {[%clk 0:00:07.3]} 31. gxf3 {[%clk 0:00:14.1]} 31... Kxe5
{[%clk 0:00:07.5]} 32. Re8+ {[%clk 0:00:11.3]} 32... Kf5 {[%clk 0:00:06.9]} 33.
Rc8 {[%clk 0:00:07.5]} 33... Ra4 {[%clk 0:00:04.7]} 34. Kg2 {[%clk 0:00:06.7]}
34... Kf4 {[%clk 0:00:04.7]} 35. Rc3 {[%clk 0:00:04.6]} 35... f5 {[%clk
0:00:03.8]} 36. Rf2 {[%clk 0:00:04.8]} 36... Bf7 {[%clk 0:00:04.3]} 37. h3
{[%clk 0:00:03.9]} 37... Bd5 {[%clk 0:00:04.7]} 38. Rd3 {[%clk 0:00:02.3]} 38...
Bc6 {[%clk 0:00:04]} 39. Rfd2 {[%clk 0:00:01]} 39... Ke5 {[%clk 0:00:03.1]} 0-1

[Event "*** Titled Tuesday Blitz"]
[Site "Chess.com"]
[Date "2020.05.05"]
[Round "2"]
[White "letsgoband"]
[Black "Unknown_IM"]
[Result "0-1"]
[WhiteElo "2279"]
[BlackElo "2522"]
[TimeControl "180+1"]
[EndTime "10:18:49 PDT"]
[Termination "Unknown_IM won by resignation"]

1. e4 {[%clk 0:03:00.9]} 1... e5 {[%clk 0:02:58.2]} 2. Nf3 {[%clk 0:02:57.6]}
2... Nc6 {[%clk 0:02:58]} 3. Bb5 {[%clk 0:02:55.4]} 3... a6 {[%clk 0:02:57]} 4.
Ba4 {[%clk 0:02:55.8]} 4... Nge7 {[%clk 0:02:56.8]} 5. c3 {[%clk 0:02:54.8]}
5... g6 {[%clk 0:02:56.2]} 6. O-O {[%clk 0:02:54.7]} 6... Bg7 {[%clk 0:02:55.9]}
7. d4 {[%clk 0:02:55.2]} 7... exd4 {[%clk 0:02:56.8]} 8. cxd4 {[%clk 0:02:55.4]}
8... b5 {[%clk 0:02:57.3]} 9. Bc2 {[%clk 0:02:55.4]} 9... O-O {[%clk 0:02:56.3]}
10. Re1 {[%clk 0:02:53.6]} 10... d6 {[%clk 0:02:53.9]} 11. Nc3 {[%clk
0:02:35.5]} 11... Bg4 {[%clk 0:02:52.2]} 12. Be3 {[%clk 0:02:28.7]} 12... Bxf3
{[%clk 0:02:32.2]} 13. gxf3 {[%clk 0:02:26.5]} 13... Qd7 {[%clk 0:02:07.8]} 14.
Bb3 {[%clk 0:02:25.7]} 14... Na5 {[%clk 0:02:05.5]} 15. Bc2 {[%clk 0:02:01.9]}
15... Nc4 {[%clk 0:02:04.8]} 16. b3 {[%clk 0:02:00.4]} 16... Nxe3 {[%clk
0:02:04.1]} 17. Rxe3 {[%clk 0:01:58.7]} 17... Nc6 {[%clk 0:02:04.1]} 18. Ne2
{[%clk 0:01:54.8]} 18... Nb4 {[%clk 0:02:02.9]} 19. Rb1 {[%clk 0:01:42.1]} 19...
Rac8 {[%clk 0:01:59.6]} 20. a3 {[%clk 0:01:41.1]} 20... Nxc2 {[%clk 0:01:59.8]}
21. Qxc2 {[%clk 0:01:42]} 21... c5 {[%clk 0:02:00.4]} 22. dxc5 {[%clk
0:01:36.1]} 22... dxc5 {[%clk 0:02:01.3]} 23. Rd1 {[%clk 0:01:35.5]} 23... Qc7
{[%clk 0:01:49.8]} 24. Nc3 {[%clk 0:01:31.8]} 24... Qe5 {[%clk 0:01:43.5]} 25.
Nd5 {[%clk 0:01:28.5]} 25... Bh6 {[%clk 0:01:38.4]} 26. Rc3 {[%clk 0:01:27.2]}
26... Qg5+ {[%clk 0:01:32]} 27. Kh1 {[%clk 0:01:26.5]} 27... Bg7 {[%clk
0:01:25.6]} 28. Rxc5 {[%clk 0:01:24.1]} 28... Rxc5 {[%clk 0:01:25.5]} 29. Qxc5
{[%clk 0:01:25]} 29... Qh4 {[%clk 0:01:17.8]} 30. Kg2 {[%clk 0:01:21]} 30...
Qg5+ {[%clk 0:01:15.6]} 31. Kf1 {[%clk 0:01:20.6]} 31... Qh4 {[%clk 0:01:15.9]}
32. Qc7 {[%clk 0:01:14.9]} 32... Qh3+ {[%clk 0:01:13.4]} 33. Ke2 {[%clk
0:01:14.9]} 33... h5 {[%clk 0:01:05.1]} 34. Ne7+ {[%clk 0:01:10.6]} 34... Kh7
{[%clk 0:01:05]} 35. Rd8 {[%clk 0:01:10.8]} 35... Qe6 {[%clk 0:01:00.6]} 36. Nd5
{[%clk 0:01:00.2]} 36... Rxd8 {[%clk 0:00:49.6]} 37. Qxd8 {[%clk 0:01:01.1]}
37... Qe5 {[%clk 0:00:50.5]} 38. Qc7 {[%clk 0:00:49.3]} 38... Qb2+ {[%clk
0:00:48.8]} 39. Kf1 {[%clk 0:00:49.7]} 39... Kg8 {[%clk 0:00:42.1]} 40. Qd8+
{[%clk 0:00:35.5]} 40... Kh7 {[%clk 0:00:42]} 41. Qe8 {[%clk 0:00:35.6]} 41...
Qc1+ {[%clk 0:00:35.8]} 42. Kg2 {[%clk 0:00:32.7]} 42... Qg5+ {[%clk 0:00:35.5]}
43. Kh3 {[%clk 0:00:32.7]} 43... f5 {[%clk 0:00:24.8]} 44. Ne7 {[%clk
0:00:32.9]} 44... fxe4 {[%clk 0:00:19.1]} 45. Qg8+ {[%clk 0:00:20]} 45... Kh6
{[%clk 0:00:18.8]} 46. Qf7 {[%clk 0:00:20.9]} 46... exf3 {[%clk 0:00:16.9]} 47.
Ng8+ {[%clk 0:00:12.4]} 47... Kh7 {[%clk 0:00:16.8]} 48. Qxf3 {[%clk 0:00:13.1]}
48... Kxg8 {[%clk 0:00:14.7]} 0-1

[Event "*** Titled Tuesday Blitz"]
[Site "Chess.com"]
[Date "2020.05.05"]
[Round "2"]
[White "Astaneh"]
[Black "BillieKimbah"]
[Result "0-1"]
[WhiteElo "2556"]
[BlackElo "2866"]
[TimeControl "180+1"]
[EndTime "10:18:50 PDT"]
[Termination "BillieKimbah won by resignation"]

1. d4 {[%clk 0:02:54.5]} 1... Nf6 {[%clk 0:03:00]} 2. Nf3 {[%clk 0:02:54.4]}
2... g6 {[%clk 0:02:59.4]} 3. g3 {[%clk 0:02:54.1]} 3... Bg7 {[%clk 0:02:58.9]}
4. Bg2 {[%clk 0:02:54.7]} 4... O-O {[%clk 0:02:58.7]} 5. O-O {[%clk 0:02:55.6]}
5... d6 {[%clk 0:02:58.3]} 6. Re1 {[%clk 0:02:55.9]} 6... Nbd7 {[%clk
0:02:55.9]} 7. Nc3 {[%clk 0:02:55]} 7... e5 {[%clk 0:02:55.6]} 8. e4 {[%clk
0:02:54.9]} 8... c6 {[%clk 0:02:55.6]} 9. a4 {[%clk 0:02:53.7]} 9... Qc7 {[%clk
0:02:55.2]} 10. h3 {[%clk 0:02:51.2]} 10... b6 {[%clk 0:02:52.6]} 11. Be3 {[%clk
0:02:47.6]} 11... a6 {[%clk 0:02:48.9]} 12. Qd2 {[%clk 0:02:47.7]} 12... Bb7
{[%clk 0:02:48.3]} 13. Rad1 {[%clk 0:02:47.1]} 13... Rad8 {[%clk 0:02:47.6]} 14.
dxe5 {[%clk 0:02:40.5]} 14... dxe5 {[%clk 0:02:40.6]} 15. Qd6 {[%clk 0:02:39.3]}
15... Qc8 {[%clk 0:02:16.1]} 16. a5 {[%clk 0:02:17.8]} 16... b5 {[%clk
0:02:10.5]} 17. Nxe5 {[%clk 0:01:45.2]} 17... Nxe5 {[%clk 0:01:36.2]} 18. Qxe5
{[%clk 0:01:44.7]} 18... Nd5 {[%clk 0:01:24.1]} 19. Qg5 {[%clk 0:00:46.1]} 19...
Nxc3 {[%clk 0:01:09.4]} 20. bxc3 {[%clk 0:00:43.8]} 20... Bxc3 {[%clk
0:01:09.2]} 21. Bb6 {[%clk 0:00:25.7]} 21... f6 {[%clk 0:00:41.3]} 22. Qe3
{[%clk 0:00:07.3]} 22... Bxe1 {[%clk 0:00:40.3]} 23. Rxe1 {[%clk 0:00:07.3]}
23... Rde8 {[%clk 0:00:33.7]} 24. c4 {[%clk 0:00:07.5]} 24... Rf7 {[%clk
0:00:27.9]} 25. Rc1 {[%clk 0:00:07.6]} 25... Qe6 {[%clk 0:00:27.8]} 26. cxb5
{[%clk 0:00:07.5]} 26... cxb5 {[%clk 0:00:27.5]} 27. f3 {[%clk 0:00:07.1]} 27...
f5 {[%clk 0:00:27.3]} 28. Kh2 {[%clk 0:00:03.8]} 28... fxe4 {[%clk 0:00:23.1]}
29. f4 {[%clk 0:00:02.5]} 29... Rd7 {[%clk 0:00:23.2]} 30. Rf1 {[%clk 0:00:03]}
30... Rd3 {[%clk 0:00:22.9]} 31. Qe2 {[%clk 0:00:03.5]} 31... Qd5 {[%clk
0:00:20.3]} 32. Re1 {[%clk 0:00:03.8]} 32... Rd2 {[%clk 0:00:20.2]} 33. Qe3
{[%clk 0:00:04.4]} 33... Qd3 {[%clk 0:00:19.4]} 34. Kg1 {[%clk 0:00:04.5]} 34...
Qxe3+ {[%clk 0:00:18.2]} 35. Rxe3 {[%clk 0:00:05.4]} 35... Rd3 {[%clk
0:00:15.1]} 36. Re1 {[%clk 0:00:05]} 36... Bd5 {[%clk 0:00:14.1]} 37. g4 {[%clk
0:00:05]} 37... b4 {[%clk 0:00:13.6]} 38. Bf1 {[%clk 0:00:05.6]} 38... Rg3+
{[%clk 0:00:12.6]} 39. Kh2 {[%clk 0:00:05.1]} 39... Ra3 {[%clk 0:00:11.8]} 40.
Bxa6 {[%clk 0:00:05.2]} 40... Ra2+ {[%clk 0:00:12]} 41. Kg1 {[%clk 0:00:05.1]}
41... b3 {[%clk 0:00:12.1]} 42. Bb5 {[%clk 0:00:04.5]} 42... Rc8 {[%clk
0:00:11.2]} 43. Bd4 {[%clk 0:00:04.1]} 43... b2 {[%clk 0:00:10.4]} 44. Rb1
{[%clk 0:00:04]} 44... Rc1+ {[%clk 0:00:10]} 0-1

[Event "*** Titled Tuesday Blitz"]
[Site "Chess.com"]
[Date "2020.05.05"]
[Round "2"]
[White "FMOlexandrProhorov"]
[Black "MichailovM"]
[Result "0-1"]
[WhiteElo "2048"]
[BlackElo "2369"]
[TimeControl "180+1"]
[EndTime "10:18:52 PDT"]
[Termination "MichailovM won by resignation"]

1. e4 {[%clk 0:03:00.9]} 1... c5 {[%clk 0:02:54.7]} 2. c3 {[%clk 0:03:00.7]}
2... g6 {[%clk 0:02:54.1]} 3. d4 {[%clk 0:03:00.1]} 3... cxd4 {[%clk 0:02:54]}
4. cxd4 {[%clk 0:02:59.1]} 4... d5 {[%clk 0:02:54.5]} 5. e5 {[%clk 0:02:58.2]}
5... Nc6 {[%clk 0:02:53.4]} 6. Nf3 {[%clk 0:02:57.6]} 6... Bg4 {[%clk
0:02:51.9]} 7. Nbd2 {[%clk 0:02:57.7]} 7... f6 {[%clk 0:02:50.9]} 8. exf6 {[%clk
0:02:52.5]} 8... exf6 {[%clk 0:02:50.2]} 9. h3 {[%clk 0:02:52.7]} 9... Bf5
{[%clk 0:02:49.5]} 10. Bb5 {[%clk 0:02:38.9]} 10... Bd6 {[%clk 0:02:47.5]} 11.
O-O {[%clk 0:02:38.8]} 11... Ne7 {[%clk 0:02:44.8]} 12. Re1 {[%clk 0:02:31.2]}
12... O-O {[%clk 0:02:34.6]} 13. Nf1 {[%clk 0:02:32.1]} 13... a6 {[%clk
0:02:27.7]} 14. Bd3 {[%clk 0:02:16.3]} 14... Qd7 {[%clk 0:02:27]} 15. Ng3 {[%clk
0:02:10.5]} 15... Bxd3 {[%clk 0:02:26.6]} 16. Qxd3 {[%clk 0:02:10.2]} 16... Bxg3
{[%clk 0:02:09.2]} 17. fxg3 {[%clk 0:02:09.9]} 17... Nf5 {[%clk 0:02:09.6]} 18.
g4 {[%clk 0:02:07.4]} 18... Nd6 {[%clk 0:02:09.3]} 19. Bh6 {[%clk 0:02:02.7]}
19... Rf7 {[%clk 0:02:06.3]} 20. g5 {[%clk 0:01:58.6]} 20... Ne4 {[%clk
0:02:05.8]} 21. gxf6 {[%clk 0:01:56.3]} 21... Rxf6 {[%clk 0:02:06.7]} 22. Ne5
{[%clk 0:01:46.9]} 22... Qe6 {[%clk 0:01:49.3]} 23. Ng4 {[%clk 0:01:20]} 23...
Rf7 {[%clk 0:01:33.6]} 24. Re2 {[%clk 0:01:17]} 24... Qd6 {[%clk 0:01:19.4]} 25.
Rae1 {[%clk 0:01:09.5]} 25... Re8 {[%clk 0:01:17.8]} 26. a3 {[%clk 0:01:04.2]}
26... Ree7 {[%clk 0:00:47.4]} 27. Be3 {[%clk 0:00:56.8]} 27... Kh8 {[%clk
0:00:45.3]} 28. Bf2 {[%clk 0:00:55]} 28... h5 {[%clk 0:00:42.6]} 29. Nh6 {[%clk
0:00:47.9]} 29... Rxf2 {[%clk 0:00:41]} 30. Rxf2 {[%clk 0:00:43.7]} 30... Nxf2
{[%clk 0:00:41.9]} 31. Rxe7 {[%clk 0:00:22.9]} 31... Nxd3 {[%clk 0:00:35.9]} 32.
Nf7+ {[%clk 0:00:22.5]} 32... Kg8 {[%clk 0:00:36]} 33. Nxd6 {[%clk 0:00:20.4]}
33... Nxe7 {[%clk 0:00:36.1]} 34. Nxb7 {[%clk 0:00:20.1]} 34... Nxb2 {[%clk
0:00:36.8]} 35. Nc5 {[%clk 0:00:19.3]} 35... a5 {[%clk 0:00:36.1]} 36. Kf2
{[%clk 0:00:18.7]} 36... Nc4 {[%clk 0:00:35.8]} 37. a4 {[%clk 0:00:18]} 37...
Nc6 {[%clk 0:00:34.9]} 38. Ne6 {[%clk 0:00:13.2]} 38... Kf7 {[%clk 0:00:33]} 39.
Nc7 {[%clk 0:00:09.7]} 39... Nb4 {[%clk 0:00:32.7]} 40. Kf3 {[%clk 0:00:07.8]}
40... Nb2 {[%clk 0:00:28.9]} 41. Kf4 {[%clk 0:00:04.3]} 41... Nxa4 {[%clk
0:00:28.9]} 42. Ke5 {[%clk 0:00:04.5]} 42... Nc3 {[%clk 0:00:28.5]} 43. g4
{[%clk 0:00:01.6]} 43... hxg4 {[%clk 0:00:28.2]} 44. hxg4 {[%clk 0:00:01.4]}
44... a4 {[%clk 0:00:28.4]} 45. g5 {[%clk 0:00:01.8]} 45... a3 {[%clk
0:00:28.2]} 0-1

[Event "*** Titled Tuesday Blitz"]
[Site "Chess.com"]
[Date "2020.05.05"]
[Round "2"]
[White "konradrutkowski"]
[Black "ShahMatKanal"]
[Result "1-0"]
[WhiteElo "2184"]
[BlackElo "2399"]
[TimeControl "180+1"]
[EndTime "10:18:54 PDT"]
[Termination "konradrutkowski won by checkmate"]

1. e4 {[%clk 0:03:00.9]} 1... c5 {[%clk 0:02:59.7]} 2. Nf3 {[%clk 0:03:00.3]}
2... d6 {[%clk 0:03:00.2]} 3. d4 {[%clk 0:03:00.4]} 3... Nf6 {[%clk 0:03:00.8]}
4. Nc3 {[%clk 0:02:59.9]} 4... cxd4 {[%clk 0:03:00.7]} 5. Nxd4 {[%clk
0:03:00.8]} 5... a6 {[%clk 0:03:01.3]} 6. Bc4 {[%clk 0:02:58.1]} 6... e6 {[%clk
0:02:59.3]} 7. Bb3 {[%clk 0:02:58.3]} 7... Be7 {[%clk 0:02:59.3]} 8. g4 {[%clk
0:02:55.6]} 8... h6 {[%clk 0:02:45.6]} 9. Be3 {[%clk 0:02:54.3]} 9... b5 {[%clk
0:02:39.4]} 10. a3 {[%clk 0:02:47.5]} 10... Bb7 {[%clk 0:02:39.4]} 11. f3 {[%clk
0:02:46.3]} 11... Qc8 {[%clk 0:02:31]} 12. Rg1 {[%clk 0:02:26.5]} 12... g5
{[%clk 0:02:22.8]} 13. Qd2 {[%clk 0:02:23.3]} 13... Nc6 {[%clk 0:02:21.7]} 14.
h4 {[%clk 0:02:16.9]} 14... Na5 {[%clk 0:02:01.5]} 15. hxg5 {[%clk 0:02:12.7]}
15... hxg5 {[%clk 0:01:56.1]} 16. Bxg5 {[%clk 0:02:06]} 16... Nc4 {[%clk
0:01:46.3]} 17. Bxc4 {[%clk 0:02:03.6]} 17... Qxc4 {[%clk 0:01:43.1]} 18. O-O-O
{[%clk 0:02:03.7]} 18... O-O-O {[%clk 0:01:39.8]} 19. Nb3 {[%clk 0:01:44.3]}
19... Qc7 {[%clk 0:01:33.1]} 20. Qf4 {[%clk 0:01:36.9]} 20... Ng8 {[%clk
0:01:14.4]} 21. Bxe7 {[%clk 0:01:36.2]} 21... Qxe7 {[%clk 0:01:15.3]} 22. g5
{[%clk 0:01:29.8]} 22... Rh7 {[%clk 0:01:03]} 23. Rg2 {[%clk 0:01:22.9]} 23...
Qc7 {[%clk 0:00:57.1]} 24. Rgd2 {[%clk 0:01:21.9]} 24... Rg7 {[%clk 0:00:46]}
25. Rxd6 {[%clk 0:01:17.8]} 25... Rxd6 {[%clk 0:00:45]} 26. Rxd6 {[%clk
0:01:16.3]} 26... Ne7 {[%clk 0:00:40.2]} 27. e5 {[%clk 0:01:02.5]} 27... Nf5
{[%clk 0:00:31.4]} 28. Rd3 {[%clk 0:00:57.9]} 28... Rh7 {[%clk 0:00:31.6]} 29.
Kb1 {[%clk 0:00:55.7]} 29... Rh4 {[%clk 0:00:28.2]} 30. Qd2 {[%clk 0:00:54.2]}
30... Qxe5 {[%clk 0:00:18.1]} 31. Rd8+ {[%clk 0:00:52.7]} 31... Kc7 {[%clk
0:00:18.8]} 32. Qd7+ {[%clk 0:00:45.6]} 32... Kb6 {[%clk 0:00:18.9]} 33. a4
{[%clk 0:00:43]} 33... Rh1+ {[%clk 0:00:10.3]} 34. Ka2 {[%clk 0:00:42.5]} 34...
bxa4 {[%clk 0:00:07.5]} 35. Nxa4+ {[%clk 0:00:40.3]} 35... Ka7 {[%clk
0:00:05.5]} 36. Nac5 {[%clk 0:00:26.2]} 36... Qd5 {[%clk 0:00:05.7]} 37. Qxd5
{[%clk 0:00:23.1]} 37... Bxd5 {[%clk 0:00:05.2]} 38. Rd7+ {[%clk 0:00:20.6]}
38... Kb6 {[%clk 0:00:05.5]} 39. Rxf7 {[%clk 0:00:19.1]} 39... a5 {[%clk
0:00:06]} 40. Na4+ {[%clk 0:00:17.8]} 40... Kb5 {[%clk 0:00:05.9]} 41. Nc3+
{[%clk 0:00:17.8]} 41... Kc4 {[%clk 0:00:06]} 42. Rc7+ {[%clk 0:00:15.4]} 42...
Kb4 {[%clk 0:00:04.5]} 43. Nxd5+ {[%clk 0:00:14.2]} 43... exd5 {[%clk
0:00:05.4]} 44. Rc5 {[%clk 0:00:14.1]} 44... a4 {[%clk 0:00:04.9]} 45. c3#
{[%clk 0:00:14.5]} 1-0